bitfinex/quotes_ETHUSD_20220305
["timestamp","ask_amount","ask_price","bid_price","bid_amount"]
[1646456099394,1.567013,2618.3,2617.5,1.51933458]
[1646456099592,1.567013,2618.3,2617.5,1.52181113]
[1646456099793,0.00167212,2617.9,2617.5,1.52181113]
[1646456099992,0.00167212,2617.9,2617.5,1.51933458]
[1646456100593,0.3805,2618.4,2617.5,1.51933458]
[1646456100791,1.56698384,2618.3,2617.5,1.52181113]
[1646456100992,0.00240182,2617.8,2617.5,1.52181113]
[1646456101236,0.00240182,2617.8,2617.5,1.51933458]
[1646456101841,1.56698384,2618.2,2617.5,1.51933458]
[1646456102037,0.00242572,2617.8,2617.5,1.52181113]
[1646456102336,0.00242572,2617.8,2617.5,1.51933458]
[1646456102735,1.56940956,2617.8,2617.5,1.51933458]
[1646456102936,0.00242572,2617.8,2617.5,1.51933458]
[1646456103137,1.65387267,2618.4,2617.6,3.5]
[1646456103138,1.56704389,2618.3,2617.6,3.5]
[1646456103337,1.56704389,2618.3,2618.1,1.13445067]
[1646456103537,1.56704389,2618.2,2618.1,1.13445067]
[1646456103938,0.15912782,2618.6,2618.1,1.13445067]
[1646456103939,1.56704389,2618.5,2618.1,1.13445067]
[1646456104540,1.56704389,2618.5,2618.1,1.13333934]
[1646456104541,0.00242561,2618.3,2618.1,1.13333934]
[1646456105591,1.56704389,2618.5,2618.1,1.13333934]
[1646456105790,0.00232866,2618.3,2618.1,1.13333934]
[1646456105993,0.00232866,2618.3,2618.2,3.5]
[1646456106193,0.00232866,2618.3,2618.2,0.457]
[1646456106793,0.08081385,2618.0,2617.8,0.38297655]
[1646456106996,0.08081385,2618.0,2617.9,0.457]
[1646456107192,0.08081385,2618.0,2617.9,1.4982888]
[1646456107594,0.08081385,2618.0,2617.9,5.3787888]
[1646456107792,0.08081385,2618.0,2617.9,7.3787888]
[1646456108835,0.08081385,2618.0,2617.9,6.3787888]
[1646456109236,0.08081385,2618.0,2617.9,2.8787888]
[1646456109439,0.08081385,2618.0,2617.9,6.3787888]
[1646456109644,0.08081385,2618.0,2617.9,14.5287888]
[1646456110039,0.08081385,2618.0,2617.9,2.8787888]
[1646456110241,0.08081385,2618.0,2617.9,6.3787888]
[1646456110440,0.08081385,2618.0,2617.9,2.8787888]
[1646456110842,0.08081385,2618.0,2617.9,18.0287888]
[1646456111042,0.08081385,2618.0,2617.9,14.5287888]
[1646456112147,0.07974543,2618.0,2617.9,2.8787888]
[1646456112383,0.07974543,2618.0,2617.9,14.5287888]
[1646456112886,0.07974543,2618.0,2617.9,15.5287888]
[1646456114388,0.07974543,2618.0,2617.9,3.4982888]
[1646456114589,0.07974543,2618.0,2617.9,2.4982888]
[1646456115388,0.07974543,2618.0,2617.9,1.4982888]
[1646456118945,0.07974543,2618.0,2617.9,2.4982888]
[1646456119744,0.07974543,2618.0,2617.9,2.49722037]
[1646456120191,0.07974543,2618.0,2617.9,5.99722037]
[1646456120392,0.07974543,2618.0,2617.9,22.25398928]
[1646456120791,0.07974543,2618.0,2617.9,23.25398928]
[1646456120991,0.07974543,2618.0,2617.9,19.75398928]
[1646456121492,0.07974543,2618.0,2617.9,19.37348928]
[1646456125665,0.07974543,2618.0,2617.9,22.66152632]
[1646456125868,0.07974543,2618.0,2617.9,15.14722037]
[1646456126167,0.88914717,2619.0,2618.9,1.05105213]
[1646456126368,2.45565439,2619.1,2618.9,1.50805213]
[1646456126568,9.04821286,2619.6,2618.9,1.50805213]
[1646456126569,1.56650722,2619.0,2618.9,1.50805213]
[1646456126769,1.56650722,2619.0,2618.6,0.83722362]
[1646456126969,0.69834717,2619.3,2618.9,1.13518411]
[1646456127169,2.26471395,2619.4,2619.0,0.457]
[1646456127422,1.56636678,2619.3,2619.0,0.457]
[1646456127626,0.00247675,2619.1,2619.0,0.457]
[1646456127824,1.56781598,2619.1,2619.0,0.457]
[1646456128226,1.56636678,2619.4,2619.0,0.457]
[1646456132044,0.3805,2619.2,2618.5,2.8915]
[1646456132242,0.3805,2619.0,2618.5,2.8915]
[1646456132442,0.3805,2618.8,2618.6,1.16136446]
[1646456132747,1.56636678,2618.7,2617.9,0.457]
[1646456132944,1.56636678,2618.7,2617.9,4.40841633]
[1646456133342,1.56899891,2618.7,2617.9,4.40841633]
[1646456133541,1.56899891,2618.7,2617.9,6.24521633]
[1646456133743,1.56899891,2618.7,2618.4,1.16697075]
[1646456134246,1.56636678,2618.6,2618.4,1.16697075]
[1646456134443,1.56636678,2618.5,2618.4,1.62397075]
[1646456134643,0.00263229,2618.7,2618.4,1.62397075]
[1646456134903,0.00263229,2618.7,2618.5,3.5]
[1646456135091,0.00263229,2618.7,2618.4,13.27397075]
[1646456135092,0.00263229,2618.7,2618.6,0.457]
[1646456135492,1.56644202,2619.0,2618.6,0.457]
[1646456135691,0.00255185,2618.8,2618.6,0.457]
[1646456135893,0.00255185,2618.8,2618.6,0.45597244]
[1646456136694,1.56644202,2619.0,2618.6,0.45597244]
[1646456136895,1.56644202,2619.0,2618.9,0.99490895]
[1646456137096,1.56644202,2619.0,2618.9,1.45190895]
[1646456139846,1.56644202,2619.0,2618.9,0.457]
[1646456142997,0.69834717,2619.2,2618.9,0.457]
[1646456142998,0.00250065,2619.1,2618.9,0.457]
[1646456143394,1.56894267,2619.1,2618.9,0.457]
[1646456143594,1.56644202,2619.0,2618.9,0.457]
[1646456144494,0.00151333,2619.1,2618.9,0.457]
[1646456145096,2.26478919,2619.3,2618.9,0.457]
[1646456145302,1.56644202,2619.2,2618.9,0.457]
[1646456145502,2.26478919,2619.4,2618.9,0.457]
[1646456145797,0.93126361,2619.7,2619.0,16.35]
[1646456145798,0.69834717,2619.5,2619.0,16.35]
[1646456145997,1.58398418,2619.9,2619.2,0.900241]
[1646456145998,0.93126361,2619.8,2619.2,0.900241]
[1646456146245,0.69834717,2619.9,2619.8,0.86615599]
[1646456146445,0.69834717,2620.0,2619.8,1.32315599]
[1646456146647,0.69834717,2620.0,2619.8,0.457]
[1646456146845,0.37660379,2619.3,2619.1,6.4802]
[1646456147047,0.37660379,2619.3,2619.2,0.457]
[1646456147449,0.37660379,2619.3,2619.2,12.107]
[1646456147646,0.37660379,2619.3,2619.2,13.18056324]
[1646456147847,0.37660379,2619.3,2619.2,14.18056324]
[1646456148052,0.00249724,2619.4,2619.3,16.35]
[1646456148249,0.00249724,2619.4,2619.3,17.807]
[1646456148650,0.69834717,2620.1,2619.3,17.807]
[1646456148847,0.69834717,2620.1,2620.0,1.14266449]
[1646456150392,0.00249765,2620.2,2620.0,1.59966449]
[1646456151191,0.93126361,2620.3,2620.0,1.59966449]
[1646456151391,0.69887886,2620.1,2620.0,1.59966449]
[1646456152394,0.69887886,2620.2,2620.0,1.59867717]
[1646456152595,0.70137651,2620.2,2620.0,1.59867717]
[1646456153638,0.69887886,2620.2,2620.0,1.59867717]
[1646456154040,0.70137636,2620.2,2620.0,1.59867717]
[1646456154439,0.0024975,2620.2,2620.0,1.59867717]
[1646456154638,0.69887886,2620.3,2620.0,1.59867717]
[1646456155044,0.0024975,2620.2,2620.0,1.59867717]
[1646456155848,0.69887886,2620.4,2620.0,1.59867717]
[1646456156247,0.0024975,2620.2,2620.0,1.59867717]
[1646456157145,0.69887886,2620.5,2620.0,1.59867717]
[1646456157396,0.00249753,2620.2,2620.0,1.59867717]
[1646456158395,0.69887886,2620.5,2620.0,1.59867717]
[1646456158590,0.00249753,2620.2,2620.0,1.59867717]
[1646456159591,0.69887886,2620.5,2620.0,1.59867717]
[1646456159791,7.47,2620.6,2620.0,1.59867717]
[1646456159792,0.00249753,2620.2,2620.0,1.59867717]
[1646456160794,0.69887886,2620.7,2620.0,1.59867717]
[1646456160997,0.00249753,2620.2,2620.0,1.59867717]
[1646456161849,1.08047886,2620.8,2620.0,1.59867717]
[1646456162050,1.08047886,2620.8,2620.4,0.99758068]
[1646456162951,0.69887886,2620.7,2620.4,0.99758068]
[1646456163152,0.69887886,2620.6,2620.4,0.99758068]
[1646456163450,0.70078192,2620.7,2620.4,0.99758068]
[1646456164252,0.69887886,2620.7,2620.4,0.99758068]
[1646456164654,0.69887886,2620.6,2620.4,0.99758068]
[1646456165799,0.70151319,2620.6,2620.4,0.99758068]
[1646456165999,1.56580571,2620.5,2620.4,0.99758068]
[1646456166400,1.56580571,2620.5,2620.2,0.457]
[1646456166601,1.56574961,2620.4,2620.2,0.457]
[1646456167002,0.91399999,2619.9,2619.7,3.0561]
[1646456167201,0.91399999,2619.9,2619.8,0.457]
[1646456167801,0.91399999,2619.9,2619.8,1.39328405]
[1646456168403,0.91399999,2619.9,2619.8,0.457]
[1646456168643,0.91399999,2619.9,2619.4,3.9149]
[1646456168644,2.47992452,2619.9,2619.2,0.25]
[1646456168848,1.56592453,2619.8,2619.0,2.0367]
[1646456169042,5.44752453,2619.8,2619.0,2.0367]
[1646456169244,1.56592453,2619.7,2619.0,2.0367]
[1646456169440,1.56592453,2619.7,2619.0,3.17991436]
[1646456169642,1.56848571,2619.7,2619.0,3.17991436]
[1646456170049,0.3816,2619.5,2618.6,2.861]
[1646456170249,0.3816,2619.3,2618.3,1.0]
[1646456170450,5.61312453,2619.4,2618.3,1.0]
[1646456170451,0.3816,2619.1,2618.3,1.0]
[1646456170646,5.44752453,2619.0,2618.3,1.0]
[1646456170849,1.94752453,2618.9,2618.3,1.0]
[1646456171048,0.3816,2618.7,2617.9,1.15447575]
[1646456171252,0.3841,2619.0,2617.9,1.15447575]
[1646456171253,5.44752453,2618.6,2617.9,1.15447575]
[1646456171457,0.3816,2618.4,2617.9,1.15447575]
[1646456172499,0.3816,2618.3,2617.9,1.15447575]
[1646456172900,0.3816,2618.3,2617.9,1.61147575]
[1646456173202,0.16392482,2618.7,2617.9,1.61147575]
[1646456173400,1.56663306,2618.6,2617.9,1.61147575]
[1646456173603,1.56663306,2618.6,2618.4,0.86634962]
[1646456173802,0.13819996,2619.0,2618.4,0.86634962]
[1646456174004,0.3816,2618.8,2618.4,0.86634962]
[1646456174302,1.56654245,2618.7,2618.1,0.457]
[1646456174501,0.3816,2618.9,2618.1,0.457]
[1646456174701,1.56653942,2618.8,2618.1,0.457]
[1646456175302,0.1908,2618.7,2618.2,0.92140002]
[1646456175502,1.56658696,2618.6,2618.2,0.92140002]
[1646456176002,0.1908,2618.8,2618.2,0.92140002]
[1646456176243,1.56660677,2618.7,2618.2,0.92140002]
[1646456176649,0.1908,2618.9,2618.2,0.92140002]
[1646456176650,1.56660677,2618.6,2618.2,0.92140002]
[1646456176849,1.09357016,2619.0,2618.3,1.12811614]
[1646456177046,1.56654225,2618.9,2618.7,1.19981132]
[1646456177449,3.8816,2619.4,2618.7,1.65681132]
[1646456177646,1.56638697,2619.3,2618.7,1.65681132]
[1646456177847,0.00226056,2619.2,2618.7,1.65681132]
[1646456178646,1.56638697,2619.3,2618.7,1.65681132]
[1646456179048,0.00228016,2619.2,2618.7,1.65681132]
[1646456179456,1.56866713,2619.2,2618.7,1.65681132]
[1646456179897,1.56638697,2619.2,2618.7,1.65681132]
[1646456180300,1.56866332,2619.2,2618.7,1.65681132]
[1646456181200,1.56638697,2619.2,2618.7,1.65681132]
[1646456181400,1.56866332,2619.2,2618.7,1.65681132]
[1646456181601,5.06866332,2619.2,2618.7,0.457]
[1646456181806,1.56638697,2619.1,2618.7,0.457]
[1646456182001,3.5,2619.0,2618.7,0.457]
[1646456182202,1.56638697,2618.9,2618.7,0.457]
[1646456182502,2.52183837,2618.9,2618.7,0.457]
[1646456182804,1.14834599,2618.8,2618.3,1.13257492]
[1646456183203,9.54365868,2619.2,2618.3,1.13257492]
[1646456183401,0.1908,2619.1,2618.3,1.13257492]
[1646456183842,0.1908,2619.1,2618.3,1.03257492]
[1646456184042,1.1460753,2619.1,2618.3,1.03257492]
[1646456184743,0.9552753,2619.1,2618.3,1.03257492]
[1646456185145,1.9107153,2619.1,2618.3,1.03257492]
[1646456188094,1.9107153,2619.1,2618.7,0.99694242]
[1646456188293,0.67406009,2618.4,2618.2,0.457]
[1646456189396,0.67406009,2618.4,2618.3,1.10289819]
[1646456189594,0.67406009,2618.4,2618.3,1.55989819]
[1646456195417,0.1908,2619.0,2618.4,4.7]
[1646456195620,3.1307,2619.2,2618.5,3.957]
[1646456195819,2.0672263,2619.7,2618.6,0.457]
[1646456196019,0.00225451,2619.2,2618.7,1.457]
[1646456196219,0.00225451,2619.2,2618.8,0.457]
[1646456196417,0.00225451,2619.2,2618.8,1.3730852]
[1646456196818,1.1822,2619.7,2618.8,1.3730852]
[1646456197019,0.002257,2619.2,2618.8,1.3730852]
[1646456197919,1.1822,2619.7,2618.8,1.3730852]
[1646456198118,1.1822,2619.7,2619.5,0.96323853]
[1646456198322,0.69887886,2619.8,2619.3,0.457]
[1646456198521,1.05219995,2619.9,2619.3,0.457]
[1646456198946,0.1907,2619.8,2619.3,0.457]
[1646456199345,0.00167382,2619.7,2619.3,0.457]
[1646456200256,0.1907,2619.8,2619.3,0.457]
[1646456200449,0.1907,2619.8,2619.7,1.09074704]
[1646456201049,0.91399999,2619.9,2619.7,1.09074704]
[1646456201849,0.91567764,2619.9,2619.7,1.09074704]
[1646456202050,0.91567764,2619.9,2619.7,1.54774704]
[1646456202701,0.91399999,2619.9,2619.7,1.54774704]
[1646456203100,0.91641018,2619.9,2619.7,1.54774704]
[1646456203900,0.91399999,2619.9,2619.7,1.54774704]
[1646456204300,0.91642781,2619.9,2619.7,1.54774704]
[1646456207844,0.91399999,2619.9,2619.7,1.54774704]
[1646456215956,0.91399999,2619.9,2619.7,13.19774704]
[1646456216353,0.91399999,2619.9,2619.7,14.19774704]
[1646456219896,0.9131666,2619.9,2619.7,14.19774704]
[1646456220302,0.91580208,2619.9,2619.7,14.19774704]
[1646456221166,1.5383,2620.8,2620.0,1.0]
[1646456221346,1.5383,2620.8,2620.1,1.51230969]
[1646456221547,0.3818,2620.8,2620.1,13.16230969]
[1646456221745,0.3818,2620.8,2620.1,14.16230969]
[1646456222147,0.3818,2620.8,2620.2,11.65]
[1646456222348,0.3818,2620.8,2620.7,1.0]
[1646456222547,0.00096,2621.2,2620.2,12.65]
[1646456222548,0.66973569,2620.6,2620.2,12.65]
[1646456222746,0.66973569,2620.6,2620.3,0.457]
[1646456223147,0.00096,2621.2,2620.6,4.2]
[1646456223348,1.56631587,2621.3,2620.7,0.457]
[1646456223549,1.56535587,2621.2,2620.8,1.02058166]
[1646456223754,0.00096,2621.5,2620.9,0.457]
[1646456223948,1.56519948,2621.5,2620.9,0.457]
[1646456224147,1.56519948,2621.4,2620.9,0.457]
[1646456224348,1.56519948,2621.3,2620.9,0.457]
[1646456224548,1.56519948,2621.2,2620.9,0.457]
[1646456224749,0.00096,2621.6,2620.9,0.457]
[1646456224997,1.94774296,2621.7,2621.4,0.96148313]
[1646456225198,1.56518296,2621.6,2621.4,1.41848313]
[1646456225998,1.56518296,2621.5,2621.4,1.41848313]
[1646456226198,1.56518296,2621.8,2621.4,1.41848313]
[1646456226401,0.002635,2621.6,2621.4,1.41848313]
[1646456226798,1.56781796,2621.6,2621.4,1.41848313]
[1646456226998,0.54888562,2621.5,2621.4,1.41848313]
[1646456227199,7.85256,2622.0,2621.4,1.41848313]
[1646456227528,0.002635,2621.6,2621.4,1.41848313]
[1646456228401,0.00096,2621.9,2621.4,1.41848313]
[1646456228655,7.47,2622.0,2621.4,1.41848313]
[1646456228846,0.002635,2621.6,2621.4,1.41848313]
[1646456229647,0.3816,2621.8,2621.4,1.41848313]
[1646456229847,0.00255214,2621.6,2621.4,1.41848313]
[1646456230051,0.00255214,2621.6,2621.4,0.457]
[1646456230052,0.38415214,2621.6,2621.4,0.457]
[1646456230250,3.8816,2621.5,2621.1,1.0]
[1646456230651,3.8816,2621.5,2620.7,0.457]
[1646456230852,3.88256,2621.5,2620.7,0.457]
[1646456231050,3.88256,2621.5,2620.9,1.06582591]
[1646456231251,0.00255219,2621.4,2620.9,1.06582591]
[1646456232053,2.2906013,2621.6,2620.9,1.06582591]
[1646456232252,0.00255223,2621.3,2620.9,1.06582591]
[1646456232700,0.00255223,2621.3,2620.7,0.457]
[1646456232900,0.00255223,2621.3,2620.3,1.457]
[1646456232901,0.38415223,2621.3,2620.3,1.457]
[1646456233101,0.3816,2621.1,2620.3,1.457]
[1646456233700,0.38408804,2621.1,2620.3,0.457]
[1646456234102,0.3816,2621.0,2620.8,0.87608371]
[1646456236004,0.38408806,2621.0,2620.8,0.87608371]
[1646456236858,0.3816,2621.0,2620.8,0.87514398]
[1646456237255,0.38410252,2621.0,2620.5,0.457]
[1646456238054,0.3816,2621.0,2620.5,0.457]
[1646456238255,0.00250255,2620.9,2620.7,0.8734059]
[1646456239256,0.3816,2621.0,2620.7,0.8734059]
[1646456239460,0.00250254,2620.9,2620.7,0.8734059]
[1646456240405,0.3816,2621.1,2620.7,0.8734059]
[1646456240806,0.00249929,2620.9,2620.7,0.8734059]
[1646456241605,0.3816,2621.1,2620.7,0.8734059]
[1646456242008,0.00249929,2620.9,2620.7,0.8734059]
[1646456242607,0.33940454,2620.4,2620.1,3.8522]
[1646456242807,0.33940454,2620.4,2620.2,0.457]
[1646456243411,0.33940454,2620.4,2620.3,1.0]
[1646456243659,0.33940454,2620.4,2620.3,0.457]
[1646456243850,0.33940454,2620.4,2620.3,1.41776844]
[1646456244249,0.33940454,2620.4,2620.3,2.41776844]
[1646456244656,0.33940454,2620.4,2620.3,1.41776844]
[1646456245555,0.33940454,2620.4,2620.3,2.41776844]
[1646456245956,0.33940454,2620.4,2620.3,1.41776844]
[1646456247159,1.90488716,2620.4,2620.3,1.41776844]
[1646456247797,0.33940454,2620.4,2620.3,1.41776844]
[1646456248099,0.33940454,2620.4,2620.3,2.41776844]
[1646456248897,0.33940454,2620.4,2620.3,1.41776844]
[1646456249501,0.33940454,2620.4,2620.3,2.41776844]
[1646456249706,0.33940454,2620.4,2620.3,1.41776844]
[1646456252149,0.33940454,2620.4,2620.3,4.91776844]
[1646456252350,0.33940454,2620.4,2620.3,5.91776844]
[1646456252645,0.33940454,2620.4,2620.3,2.41776844]
[1646456252846,0.33940454,2620.4,2620.3,1.41776844]
[1646456257504,1.90478364,2620.4,2620.3,1.41776844]
[1646456257711,0.33940454,2620.4,2620.3,1.41776844]
[1646456257907,1.90479905,2620.4,2620.3,1.41776844]
[1646456266851,1.90395299,2620.4,2620.3,1.41776844]
[1646456268355,0.33855848,2620.4,2620.3,1.41776844]
[1646456269557,1.90385668,2620.4,2620.3,1.41776844]
[1646456270603,0.33855848,2620.4,2620.3,1.41776844]
[1646456270810,1.90395739,2620.4,2620.3,1.41776844]
[1646456273005,1.90395739,2620.4,2620.3,1.41624321]
[1646456285409,1.90395739,2620.4,2620.3,4.91624321]
[1646456285808,1.90395739,2620.4,2620.3,5.91624321]
[1646456286009,0.33855848,2620.4,2620.3,2.41624321]
[1646456286209,0.33855848,2620.4,2620.3,1.41624321]
[1646456290966,1.90382924,2620.4,2620.3,1.41624321]
[1646456294002,1.90385847,2620.4,2620.3,1.41624321]
[1646456294209,1.90268116,2620.4,2620.3,1.41624321]
[1646456302612,0.33738117,2620.4,2620.3,1.41624321]
[1646456306257,0.00250348,2620.5,2620.3,1.41624321]
[1646456306657,1.08143886,2621.1,2620.3,1.41624321]
[1646456306857,1.56521956,2621.0,2620.7,1.04103544]
[1646456307066,1.94681956,2621.0,2620.8,0.457]
[1646456307259,1.94681956,2620.9,2620.8,0.457]
[1646456307709,1.93665193,2620.9,2620.8,0.457]
[1646456308309,5.43665193,2620.9,2620.8,0.457]
[1646456308509,1.93665193,2620.9,2620.8,0.457]
[1646456308708,2.63553079,2620.9,2620.8,0.457]
[1646456308909,2.63553079,2620.9,2620.3,0.457]
[1646456308910,5.43665193,2620.9,2620.3,0.457]
[1646456309112,0.3816,2620.7,2620.1,0.457]
[1646456309312,0.3816,2620.5,2620.2,1.05479842]
[1646456310315,0.0025071,2620.5,2620.2,1.05479842]
[1646456311354,0.3816,2620.6,2620.2,1.05479842]
[1646456311554,0.0025071,2620.5,2620.2,1.05479842]
[1646456312154,0.0025071,2620.5,2620.2,0.90479842]
[1646456312555,0.3816,2620.6,2620.2,0.90479842]
[1646456312754,0.00257476,2620.5,2620.2,0.90479842]
[1646456313355,0.00257476,2620.5,2620.3,0.457]
[1646456313755,0.3816,2620.6,2620.3,0.457]
[1646456313957,0.00257474,2620.5,2620.3,0.457]
[1646456314656,0.38417474,2620.5,2620.3,0.457]
[1646456315111,0.3816,2620.5,2620.3,0.457]
[1646456315311,0.38417474,2620.5,2620.3,0.457]
[1646456315710,0.00257474,2620.5,2620.3,0.457]
[1646456316312,0.3816,2620.7,2620.3,0.457]
[1646456316513,0.00249186,2620.5,2620.3,0.457]
[1646456317312,0.3816,2620.7,2620.3,0.457]
[1646456317814,0.00249186,2620.5,2620.3,0.457]
[1646456318659,0.3816,2620.7,2620.3,0.457]
[1646456318850,0.00249186,2620.5,2620.3,0.457]
[1646456319854,0.3816,2620.7,2620.3,0.457]
[1646456320058,0.00251051,2620.5,2620.3,0.457]
[1646456321154,0.3816,2620.7,2620.3,0.457]
[1646456321356,0.00251051,2620.5,2620.3,0.457]
[1646456322260,0.3816,2620.7,2620.3,0.457]
[1646456322507,0.00251051,2620.5,2620.3,0.457]
[1646456323510,0.3816,2620.7,2620.3,0.457]
[1646456323710,0.00250631,2620.5,2620.3,0.457]
[1646456324514,0.3816,2620.8,2620.3,0.457]
[1646456324711,1.0829775,2620.9,2620.3,0.457]
[1646456324912,0.00250631,2620.5,2620.3,0.457]
[1646456325917,0.3816,2620.6,2620.0,0.1]
[1646456326169,1.0829775,2620.6,2620.0,0.1]
[1646456326962,0.3816,2620.6,2620.0,1.0684576]
[1646456328164,1.6561403,2620.7,2620.0,1.0684576]
[1646456328165,0.3816,2620.4,2620.0,1.0684576]
[1646456328365,1.56555767,2620.3,2620.0,1.0684576]
[1646456328769,1.56555767,2620.3,2620.0,1.5254576]
[1646456329365,1.56555767,2620.2,2620.0,1.5254576]
[1646456329565,1.56555767,2620.1,2620.0,1.5254576]
[1646456329767,1.56555767,2620.1,2620.0,0.557]
[1646456330213,1.56806853,2620.3,2620.0,0.557]
[1646456330617,1.56555767,2620.3,2620.0,0.557]
[1646456330818,0.00251068,2620.2,2620.0,0.557]
[1646456331016,1.51806835,2620.3,2620.0,1.73597744]
[1646456331218,0.3816,2620.4,2620.0,1.73597744]
[1646456331421,0.53809826,2620.6,2620.0,1.73597744]
[1646456331715,0.53809826,2620.6,2620.0,0.557]
[1646456332717,0.3816,2620.6,2620.0,0.557]
[1646456333219,0.00190917,2620.4,2620.0,0.557]
[1646456333415,0.00190917,2620.4,2620.0,1.46799435]
[1646456334253,0.3816,2620.6,2620.0,1.46799435]
[1646456334453,0.00264602,2620.3,2620.0,1.46799435]
[1646456334654,0.00264602,2620.3,2620.1,3.5]
[1646456334854,0.00264602,2620.3,2620.2,0.457]
[1646456335457,1.2059,2620.8,2620.2,0.457]
[1646456335658,1.2059,2620.8,2620.7,1.09701783]
[1646456335863,0.57270461,2620.5,2620.3,3.5]
[1646456336060,0.57270461,2620.5,2620.2,1.6004261]
[1646456336859,0.57535059,2620.5,2620.2,1.6004261]
[1646456337907,0.57270461,2620.5,2620.2,1.6004261]
[1646456338106,0.57535059,2620.5,2620.2,1.6004261]
[1646456339107,0.57270461,2620.5,2620.2,1.6004261]
[1646456339306,0.57526749,2620.5,2620.2,1.6004261]
[1646456340212,0.57270461,2620.5,2620.2,1.6004261]
[1646456340411,0.57526749,2620.5,2620.2,1.6004261]
[1646456341460,0.57270461,2620.5,2620.2,1.6004261]
[1646456341662,0.57526749,2620.5,2620.2,1.6004261]
[1646456342660,0.57270461,2620.5,2620.2,1.6004261]
[1646456342859,0.57527684,2620.5,2620.2,1.6004261]
[1646456343860,0.57270461,2620.5,2620.2,1.6004261]
[1646456344061,0.57527684,2620.5,2620.2,1.6004261]
[1646456345114,0.57270461,2620.5,2620.2,1.6004261]
[1646456345313,0.57527684,2620.5,2620.2,1.6004261]
[1646456346220,0.57270461,2620.5,2620.2,1.6004261]
[1646456347718,0.57461432,2620.5,2620.2,1.6004261]
[1646456348521,0.57270461,2620.5,2620.2,1.6004261]
[1646456348960,0.57270461,2620.5,2620.2,5.1004261]
[1646456349263,0.57270461,2620.5,2620.4,1.0]
[1646456349460,0.57270461,2620.5,2620.4,1.457]
[1646456351665,2.13807234,2620.5,2620.4,1.457]
[1646456353508,2.13807234,2620.5,2620.4,0.457]
[1646456354313,2.13807234,2620.5,2620.0,0.1]
[1646456354514,0.3816,2620.3,2620.0,0.1]
[1646456354713,1.56536773,2620.2,2620.0,0.1]
[1646456355114,1.94696773,2620.2,2620.0,0.1]
[1646456355317,1.94696773,2620.1,2620.0,0.1]
[1646456355517,1.94696773,2620.1,2619.7,0.25]
[1646456355518,4.7,2620.0,2619.7,0.25]
[1646456355718,5.44696773,2619.9,2619.7,0.25]
[1646456355919,1.94696773,2619.8,2619.7,0.25]
[1646456356178,0.8816,2619.6,2618.9,0.00244891]
[1646456356366,1.56536773,2619.5,2619.0,1.09519838]
[1646456356572,5.06536773,2619.5,2619.0,1.09519838]
[1646456356772,1.56536773,2619.4,2619.0,1.09519838]
[1646456356972,0.8816,2619.6,2619.0,1.09519838]
[1646456356973,3.5,2619.5,2619.0,1.09519838]
[1646456357174,1.56601115,2619.4,2619.0,1.09519838]
[1646456357374,3.5,2619.5,2619.0,1.09519838]
[1646456358774,0.3816,2619.4,2619.0,1.09519838]
[1646456358976,3.8816,2619.3,2619.0,1.09519838]
[1646456359374,3.8816,2619.3,2618.7,0.01124763]
[1646456359580,0.3816,2619.1,2618.7,0.00244891]
[1646456359778,3.8816,2619.0,2618.6,1.00879889]
[1646456360210,3.8816,2619.0,2618.6,0.00879889]
[1646456360614,3.8816,2619.0,2618.4,0.00244891]
[1646456360615,0.3816,2618.9,2618.4,0.00244891]
[1646456360814,0.3816,2618.7,2618.2,2.67924891]
[1646456361016,0.3816,2618.7,2618.3,0.00880006]
[1646456361017,3.5,2618.6,2618.3,0.00880006]
[1646456361913,3.5,2618.6,2618.0,0.00244891]
[1646456362214,3.8816,2618.6,2618.3,0.97372761]
[1646456362412,3.8816,2618.6,2617.9,0.0099208]
[1646456362614,0.3816,2618.6,2617.9,0.0099208]
[1646456362816,0.3816,2618.6,2617.9,0.4669208]
[1646456363022,3.8816,2618.5,2617.9,0.457]
[1646456363214,0.3816,2618.5,2618.0,0.00244891]
[1646456363414,0.3816,2618.5,2618.0,0.457]
[1646456363870,0.3816,2618.5,2618.1,1.03286924]
[1646456364870,3.5,2618.4,2618.1,1.03286924]
[1646456365071,3.5,2618.4,2618.0,0.457]
[1646456365470,3.8816,2618.6,2618.0,0.457]
[1646456366072,3.8816,2618.6,2618.1,1.17114524]
[1646456367414,3.8816,2618.6,2618.0,0.457]
[1646456367614,0.3816,2618.6,2618.0,0.457]
[1646456368914,0.3816,2618.6,2618.4,0.93457796]
[1646456369714,1.1908,2618.8,2618.4,0.93457796]
[1646456369914,1.0,2618.8,2618.4,0.93457796]
[1646456370114,1.3370358,2619.0,2618.4,0.93457796]
[1646456370318,0.1582255,2619.1,2618.4,1.39157796]
[1646456370614,0.1582255,2619.1,2618.4,1.39402687]
[1646456370814,0.1582255,2619.1,2619.0,1.15597138]
[1646456371018,0.5724,2619.4,2619.0,1.61297138]
[1646456371260,0.71198041,2619.6,2619.0,1.61297138]
[1646456371461,0.5,2619.6,2619.0,1.61297138]
[1646456371866,0.5,2619.6,2619.5,0.88629287]
[1646456372467,0.5,2619.6,2619.4,0.457]
[1646456373466,0.5,2619.6,2619.4,1.66032624]
[1646456376112,0.01015401,2619.3,2618.8,0.00244891]
[1646456376313,0.01015401,2619.3,2618.9,0.457]
[1646456376513,0.01015401,2619.3,2619.0,0.457]
[1646456378763,0.01015401,2619.3,2619.1,0.97015805]
[1646456378959,0.01015401,2619.3,2619.2,0.457]
[1646456381564,0.01015401,2619.3,2619.1,0.97015805]
[1646456382165,0.01015401,2619.3,2618.8,0.45944891]
[1646456382437,1.34704001,2619.3,2618.6,0.00244891]
[1646456382634,3.5,2619.2,2618.7,0.0089418]
[1646456383333,3.8816,2619.2,2618.7,0.0089418]
[1646456383535,0.3816,2619.0,2618.6,0.00244891]
[1646456383734,0.3816,2619.0,2618.4,0.0079029]
[1646456383735,3.5,2618.9,2618.4,0.0079029]
[1646456384137,4.5,2618.9,2618.4,0.0079029]
[1646456384538,4.5,2618.9,2618.4,1.22316574]
[1646456384737,4.5,2618.9,2618.4,1.21526284]
[1646456385141,1.0,2618.9,2618.4,1.21526284]
[1646456385344,1.12300828,2619.0,2618.4,1.21526284]
[1646456386364,3.5,2618.9,2618.4,1.21526284]
[1646456386770,4.5,2618.9,2618.4,1.21526284]
[1646456386971,2.12300828,2619.0,2618.4,1.21526284]